[Event "GER-ch Youth-U14 2022"]
[Site "Willingen"]
[Date "2022.06.09"]
[Round "7.2"]
[White "Sreyas Payyappat"]
[Black "Honisch, Alexander"]
[Result "1-0"]
[ECO "C54"]
[WhiteElo "2169"]
[BlackElo "1878"]
[Annotator "TA"]
[PlyCount "83"]
[EventDate "2022.06.05"]
[EventType "swiss"]
[EventRounds "9"]
[EventCountry "GER"]
[SourceTitle "playchess.com"]
[Source "ChessBase"]
[SourceQuality "1"]
[TimeControl "40/4500+30:900+30"]

{[%evp 17,83,0,0,0,0,0,0,0,0,0,35,37,81,22,30,28,27,23,24,20,46,16,38,9,91,17,58,51,55,44,52,44,52,51,86,85,84,86,77,67,68,58,120,86,137,28,110,93,86,84,91,99,89,66,723,712,1368,1337,1319,1241,1102,1097,29990,29991,29993,29974,29990,29991]} 1. e4 {[%emt 0:00:00]} e5 {[%emt 0:00:00]} 2. Nf3 {[%emt 0:00:00]} Nc6 {[%emt 0:00:00]} 3. Bc4 {[%emt 0:00:00]} Bc5 {[%emt 0:00:00]} 4. c3 {[%emt 0:00:00]} Nf6 {[%emt 0:00:00]} 5. d4 {[%emt 0:00:00]} exd4 {[%emt 0:00:00]} 6. e5 {[%emt 0:00:00]} d5 {[%emt 0:00:00]} 7. Bb5 {[%emt 0:00:00]} Ne4 {[%emt 0:00:00]} 8. cxd4 {[%emt 0:00:00]} Bb6 {[%emt 0:00:00]} 9. Nc3 {[%emt 0:00:00]} O-O {[%emt 0:00:00]} 10. Be3 {[%emt 0:00:00] C54: Giuoco Piano: 4 c3 Nf6, main lines with 5 d4 and 5 d3.} Bg4 {[%emt 0:04:10]} 11. h3 {[%emt 0:00:00]} Bxf3 {[%emt 0:04:47]} 12. gxf3 {[%emt 0:00:00] The position is equal.} Nxc3 {[%emt 0:01:15]} 13. bxc3 {[%emt 0:00:00] [#]} Qe7 $146 {[%emt 0:19:21]} ({Predecessor:} 13... f5 14. Qd2 Qh4 15. Bg5 Qh5 16. O-O-O Ba5 17. Rhg1 Kh8 18. Rg3 h6 19. Bf4 Qh4 {1-0 (43) Amonatov,F (2636)-Socko,B (2593) Riadh 2017}) 14. f4 {[%emt 0:07:09]} f5 {[%emt 0:11:11]} 15. a4 {[%emt 0:23:52]} ({White should play} 15. Bxc6 $16 bxc6 16. Qa4) 15... Na5 $11 {[%emt 0:20:04]} 16. O-O {[%emt 0:08:08]} c6 {[%emt 0:02:24]} 17. Be2 {[%emt 0:02:06]} Qe6 {[%emt 0:01:46]} 18. Kh2 {[%emt 0:01:55]} Nc4 {[%emt 0:02:33]} 19. Qb3 {[%emt 0:08:12]} Rab8 {[%emt 0:02:12]} 20. Rg1 {[%emt 0:03:21]} Kh8 {[%emt 0:06:44]} (20... Bc7 $11) 21. Rg3 {[%emt 0:01:28]} (21. Bxc4 $16 dxc4 22. Qb4) 21... Rf7 {[%emt 0:01:42]} 22. Bxc4 {[%emt 0:02:09]} dxc4 {[%emt 0:00:05]} 23. Qb4 {[%emt 0:00:12]} Bd8 {[%emt 0:01:14]} 24. a5 {[%emt 0:03:01]} Be7 {[%emt 0:02:03]} 25. Qb2 {[%emt 0:01:48]} Bf8 {[%emt 0:01:23]} 26. Ra4 {[%emt 0:01:54]} b5 {[%emt 0:01:29]} 27. axb6 $1 {[%emt 0:03:26]} axb6 {[%emt 0:00:09]} 28. Rg1 {[%emt 0:02:31]} b5 {[%emt 0:01:16]} 29. Rga1 $1 {[%emt 0:00:40]} Rfb7 {[%emt 0:03:32]} (29... Qc8 $14 30. Ra6 Rfb7) 30. Ra8 {[%emt 0:03:20]} Qd7 {[%emt 0:00:36] [#]} (30... Kg8 $142) 31. R1a6 {[%emt 0:01:57]} (31. R1a7 $1 $16 {[%mdl 512] aiming for Rxb8.} Qc8 32. Qa1) 31... h6 {[%emt 0:00:30]} (31... g6 $11) 32. Qa2 {[%emt 0:01:03]} Be7 {[%emt 0:00:32]} 33. R6a7 {[%emt 0:02:47] Rxb8+ is the strong threat.} Rxa8 {[%emt 0:00:22]} 34. Rxa8+ {[%emt 0:00:16]} Kh7 {[%emt 0:00:05]} 35. Qa6 {[%emt 0:02:30] White is more active.} Qc7 $2 {[%emt 0:01:01][%mdl 8192] [#] Loses the game.} (35... Rc7 $14) 36. d5 $1 $18 {[%emt 0:00:52]} cxd5 {[%emt 0:00:27]} 37. Qe6 $1 {[%emt 0:00:18][%csl LRd5,LRf5]} Bd8 {[%emt 0:00:36]} 38. Qxf5+ {[%emt 0:00:15]} g6 {[%emt 0:00:14]} 39. Qf8 {[%emt 0:00:19] White wants to mate with e6.} Rb8 {[%emt 0:00:32]} 40. Rxb8 {[%emt 0:00:09] White mates.} Qxb8 {[%emt 0:00:06]} 41. Qf7+ {[%emt 0:15:30]} Kh8 {[%emt 0:15:05]} 42. e6 {[%emt 0:00:29] Weighted Error Value: White=0.20 (precise) /Black=0.42} 1-0

[Event "GER-ch Youth-U14 2022"]
[Site "Willingen"]
[Date "2022.06.09"]
[Round "7.3"]
[White "Besou, Hussain"]
[Black "Campora, Daniel H."]
[Result "1-0"]
[ECO "B12"]
[WhiteElo "2094"]
[BlackElo "2397"]
[Annotator "TA"]
[PlyCount "45"]
[EventDate "2022.06.05"]
[EventType "swiss"]
[EventRounds "9"]
[EventCountry "GER"]
[SourceTitle "playchess.com"]
[Source "ChessBase"]
[SourceQuality "1"]
[TimeControl "40/4500+30:900+30"]

{[%evp 12,45,22,26,29,35,26,22,40,31,39,28,52,8,74,76,136,125,134,138,133,118,188,152,279,281,266,251,624,610,889,855,781,614,1155,1077]} 1. e4 {[%emt 0:00:00]} c6 {[%emt 0:00:00]} 2. d4 {[%emt 0:00:00]} d5 {[%emt 0:00:00]} 3. e5 {[%emt 0:00:00]} Bf5 {[%emt 0:00:00]} 4. Nf3 {[%emt 0:00:00]} e6 {[%emt 0:00:00]} 5. Be2 {[%emt 0:00:00]} Nd7 {[%emt 0:00:00]} 6. O-O {[%emt 0:00:00]} h6 {[%emt 0:00:00]} 7. Nbd2 {[%emt 0:00:00]} Ne7 {[%emt 0:00:00] B12: Caro-Kann: Advance Variation.} 8. Nb3 {[%emt 0:00:00]} g5 {[%emt 0:00:00] 8...g5 scores better than 8...Bh7.} 9. a4 {[%emt 0:00:00]} Ng6 {[%emt 0:00:00] The position is equal.} 10. a5 {[%emt 0:00:00] [#]} g4 $146 {[%emt 0:00:00]} ({Predecessor:} 10... a6 11. c4 g4 12. Ne1 h5 13. cxd5 cxd5 14. Bd3 Nh4 15. Bf4 Nb8 16. Qd2 Be7 {1-0 (57) Kosintseva,T (2483)-Khotenashvili,B (2504) Beijing 2014}) 11. Ne1 {[%emt 0:00:00]} h5 {[%emt 0:00:00]} 12. Nd3 {[%emt 0:06:21]} Be7 {[%emt 0:01:16] [#]} (12... f6 $11) 13. f3 $1 $16 {[%emt 0:10:14]} c5 {[%emt 0:12:46]} (13... gxf3 $142 14. Rxf3 (14. Bxf3 c5 $14) 14... Qc7) 14. Ndxc5 {[%emt 0:21:47]} ({Reject} 14. fxg4 $6 hxg4 15. Bxg4 Bxg4 16. Qxg4 c4 $14) 14... Nxc5 {[%emt 0:14:27]} 15. Nxc5 {[%emt 0:00:15]} Bxc5 {[%emt 0:02:34]} 16. dxc5 {[%emt 0:04:30]} Nxe5 {[%emt 0:06:48]} (16... a6 $16 {keeps fighting.}) 17. Bf4 {[%emt 0:06:08]} Qf6 {[%emt 0:04:17]} (17... f6 $16) 18. fxg4 $18 {[%emt 0:10:59]} hxg4 {[%emt 0:00:29]} 19. c3 {[%emt 0:02:21] [#] Black must now prevent Bb5+.} Nc6 $2 {[%emt 0:18:07]} (19... a6 20. Qd4 Nd7) 20. a6 {[%emt 0:01:32][%cal Ba5a6,Ba6b7][%mdl 32] White is clearly winning.} O-O {[%emt 0:08:52]} 21. axb7 {[%emt 0:00:12]} Rad8 {[%emt 0:00:09]} 22. Bd6 {[%emt 0:00:33]} Rfe8 {[%emt 0:01:03]} 23. Bb5 {[%emt 0:01:42] Weighted Error Value: White=0.17 (very precise) /Black=0.72} 1-0

[Event "GER-ch Youth-U14 2022"]
[Site "Willingen"]
[Date "2022.06.09"]
[Round "7.4"]
[White "Haubold, Christian Lucas"]
[Black "Möller, Maurin"]
[Result "0-1"]
[ECO "C40"]
[WhiteElo "1921"]
[BlackElo "1780"]
[Annotator "TA"]
[PlyCount "82"]
[EventDate "2022.06.05"]
[EventType "swiss"]
[EventRounds "9"]
[EventCountry "GER"]
[SourceTitle "playchess.com"]
[Source "ChessBase"]
[SourceQuality "1"]
[TimeControl "40/4500+30:900+30"]

{[%evp 9,82,12,84,62,68,-26,-8,-33,-30,-45,-28,-28,-27,-19,-14,-6,-5,-24,-31,-36,-24,-51,-43,-75,-64,-67,-58,-98,-87,-111,-110,-240,-152,-173,-174,-208,-115,-235,-134,-133,-127,-126,-129,-140,-114,-142,-138,-132,-142,-126,-104,-138,-85,-81,-125,-104,-131,-428,-409,-410,-410,-1152,-940,-792,-770,-1643,-1639,-1497,-1475,-29977,-29978,-29976,-29978,-29976,-29977]} 1. e4 {[%emt 0:00:00]} e5 {[%emt 0:00:00]} 2. Nf3 {[%emt 0:00:00]} d5 {[%emt 0:00:00]} 3. d4 {[%emt 0:04:12]} dxe4 {[%emt 0:00:23]} 4. Nxe5 {[%emt 0:00:17]} Bd6 {[%emt 0:00:46]} 5. Bf4 {[%emt 0:12:25]} Qf6 {[%emt 0:03:38]} (5... Nf6 $11) 6. Qd2 {[%emt 0:12:08] aiming for Bg5. C40: Latvian and Elephant Gambits.} Nd7 {[%emt 0:05:06][%cal Rd7e5] [#]} 7. Nxd7 $146 {[%emt 0:14:30]} (7. Bg5 $14 Qf5 8. Nc4) ({Predecessor:} 7. Bg5 Qf5 8. g4 Nxe5 9. dxe5 Qxe5 10. Nc3 Bxg4 11. Be2 Be6 12. O-O-O h6 13. Be3 {1-0 (13) Alderman,G-Schober,M corr 1989}) 7... Qxf4 $11 {[%emt 0:00:40]} 8. Qxf4 {[%emt 0:00:47] The position is equal.} Bxf4 {[%emt 0:00:02]} 9. Nc5 {[%emt 0:00:14]} f5 {[%emt 0:00:29]} 10. Nc3 {[%emt 0:03:15]} c6 {[%emt 0:05:10]} 11. Bc4 {[%emt 0:01:24]} Ke7 {[%emt 0:00:49]} 12. g3 {[%emt 0:03:41]} Bd6 {[%emt 0:01:35]} 13. a4 {[%cal Of2f3]} (13. f3 $5 {[%cal Rf3e4]}) 13... b6 {[%emt 0:02:52][%cal Bb7b6,Bb6b5][%mdl 32]} 14. Nb3 {[%emt 0:04:43]} Nf6 {[%emt 0:00:52]} 15. O-O-O {[%emt 0:05:09]} a6 {[%emt 0:10:36]} 16. Nd2 {[%emt 0:06:32]} b5 {[%emt 0:13:43]} 17. Bb3 {[%emt 0:00:18]} Re8 {[%emt 0:14:23]} 18. d5 {[%emt 0:01:28]} b4 {[%emt 0:01:01]} 19. Ne2 {[%emt 0:00:31]} cxd5 {[%emt 0:00:30] And now ...Bc5 would win.} ({Stronger than} 19... Nxd5 20. Nd4 Bd7 21. Nc4 $15) 20. Nd4 {[%emt 0:01:36]} (20. Nf1 $17 {keeps fighting.}) 20... Bd7 {[%emt 0:01:31] Strongly threatening ...Bc5.} 21. Nf1 {[%emt 0:00:48]} f4 {[%emt 0:01:17] Prevents Ne3.} 22. h3 {[%emt 0:02:51] [#]} Rac8 {[%emt 0:02:18]} (22... g5 $1 $19 23. Rg1 Rg8) 23. Ne2 {[%emt 0:00:55]} (23. gxf4 $17 Bxf4+ 24. Ne3) 23... fxg3 {[%emt 0:02:13]} (23... g5 $19 {White must now prevent ...h5.} 24. h4 h6) 24. fxg3 $17 {[%emt 0:00:27]} Rc5 {[%emt 0:00:34] 0x0.001e35de71b3dp-1022s more active pieces.} 25. Ne3 {[%emt 0:00:41]} Be6 {[%emt 0:02:07]} 26. Nd4 {[%emt 0:00:50]} Rd8 {[%emt 0:02:45]} 27. Kb1 {[%emt 0:02:13]} g6 {[%emt 0:00:47] Inhibits Nef5+.} 28. g4 {[%emt 0:00:40]} Bf4 {[%emt 0:00:44]} 29. Ng2 {[%emt 0:00:43]} Be5 {[%emt 0:01:11] A strong pair of Bishops.} 30. Ne3 {[%emt 0:00:12]} a5 {[%emt 0:01:23]} (30... h6 $142 31. Rhf1 Bf7) 31. Nxe6 {[%emt 0:00:34]} Kxe6 {[%emt 0:00:01]} 32. g5 {[%emt 0:00:09] [#]} Nh5 {[%emt 0:00:22]} ({Much weaker is} 32... Bf4 $6 33. gxf6 Bxe3 34. Rhe1 $11) 33. Nxd5 $2 {[%emt 0:02:35][%mdl 8192]} (33. Ka2 $17) 33... Rdxd5 $19 {[%emt 0:00:14]} ({And not} 33... Rcxd5 34. Rhe1 $17) 34. Rxd5 {[%emt 0:00:35]} Rxd5 {[%emt 0:00:01]} 35. Bxd5+ {[%emt 0:00:29]} (35. Re1 $142 Kd6 36. Bxd5 Kxd5 37. Kc1) 35... Kxd5 {[%emt 0:00:01]} 36. Rd1+ {[%emt 0:00:09]} Ke6 {[%emt 0:00:36]} 37. Rd8 {[%emt 0:00:57]} e3 {[%emt 0:00:36][%cal Be4e3,Be3e2][%mdl 32]} 38. Kc1 {[%emt 0:00:23]} Nf4 {[%emt 0:01:04] ( -> ...e2)} 39. Kd1 {[%emt 0:01:19]} e2+ {[%emt 0:00:20] Black mates.} 40. Ke1 {[%emt 0:00:08]} Bxb2 {[%emt 0:00:04]} 41. Re8+ {[%emt 0:15:09]} Kf5 {[%emt 0:15:11] Weighted Error Value: White=0.67/Black=0.16 (very precise)} 0-1

[Event "GER-ch Youth-U14 2022"]
[Site "Willingen"]
[Date "2022.06.09"]
[Round "7.5"]
[White "Kocharin, Timur"]
[Black "Klaska, Philipp Leon"]
[Result "1/2-1/2"]
[ECO "A61"]
[WhiteElo "1867"]
[BlackElo "1946"]
[Annotator "TA"]
[PlyCount "83"]
[EventDate "2022.06.05"]
[EventType "swiss"]
[EventRounds "9"]
[EventCountry "GER"]
[SourceTitle "playchess.com"]
[Source "ChessBase"]
[SourceQuality "1"]
[TimeControl "40/4500+30:900+30"]

{[%evp 16,83,47,13,16,0,44,47,30,38,182,173,187,182,180,195,191,158,134,18,0,7,0,-44,-63,-86,-96,-79,-84,-71,0,0,0,0,0,0,0,0,0,0,0,0,0,0,0,0,0,0,0,-8,-6,-13,-12,-17,0,0,0,-9,0,0,0,-16,0,0,0,-41,0,0,0,0]} 1. d4 {[%emt 0:00:00]} Nf6 {[%emt 0:00:00]} 2. Nf3 {[%emt 0:00:00]} e6 {[%emt 0:00:00]} 3. c4 {[%emt 0:00:00]} c5 {[%emt 0:00:00]} 4. d5 {[%emt 0:00:00]} exd5 {[%emt 0:00:00]} 5. cxd5 {[%emt 0:00:00]} d6 {[%emt 0:00:00]} 6. Nc3 {[%emt 0:00:00]} g6 {[%emt 0:00:00]} 7. e4 {[%emt 0:00:00]} Bg7 {[%emt 0:00:00]} 8. Be3 {[%emt 0:00:00]} O-O {[%emt 0:00:00]} 9. h3 {[%emt 0:00:00]} Re8 {[%emt 0:00:00] A70: Modern Benoni: 6 e4 g6 7 Nf3.} 10. Nd2 {[%emt 0:00:00]} Nxe4 {[%emt 0:00:00]} 11. Ncxe4 {[%emt 0:01:54] Strongly threatening Be2.} f5 $1 {[%emt 0:03:39] White is slightly better.} 12. Bb5 $1 {[%emt 0:02:41] [#]} ({Reject} 12. Nc3 f4 13. Nc4 fxe3 14. Nxe3 Bd4 $17) 12... Rf8 $146 {[%emt 0:03:54]} (12... Bd7 $14 13. Nxd6 Bxb5 14. Nxb5 f4) ({Predecessor:} 12... Bd7 13. Nxd6 Bxb5 14. Nxb5 f4 15. O-O fxe3 16. fxe3 a6 17. Nc3 b5 18. Nf3 Rxe3 {1-0 (56) Dev,S (2272)-Aaditya,D (2176) Chess.com INT 2022}) 13. Bg5 $18 {[%emt 0:17:37]} Qb6 {[%emt 0:04:50] [#]} 14. Nxd6 {[%emt 0:01:14][%mdl 512]} Qxd6 {[%emt 0:04:11]} 15. Nc4 {[%emt 0:00:51]} Qc7 {[%emt 0:02:31][%cal Og7b2]} 16. d6 {[%emt 0:02:27]} Qf7 {[%emt 0:00:54]} 17. Be7 {[%emt 0:03:28] White is much more active. The black rooks are badly placed.} (17. O-O $16) 17... Bd7 $11 {[%emt 0:08:00]} 18. Bxd7 {[%emt 0:12:40]} Nxd7 {[%emt 0:13:15]} 19. Qb3 {[%emt 0:03:07]} b5 {[%emt 0:11:01]} 20. Nd2 {[%emt 0:05:54]} (20. Qxb5 $2 {[#]} Rfb8 $1 21. Qa6 Qe6+ 22. Kf1 Rb4 $19) 20... Qxb3 {[%emt 0:01:42]} 21. axb3 {[%emt 0:02:07]} Rfe8 {[%emt 0:01:41]} ({Don't play} 21... Bxb2 22. Ra2 Bf6 23. Bxf8 Kxf8 24. Nf3 $11) 22. O-O-O {[%emt 0:01:41]} Bf8 {[%emt 0:12:59]} (22... a5 $17 {Hoping for ...a4.} 23. Rhe1 a4 24. bxa4 Rxa4) 23. Rhe1 {[%emt 0:06:25]} Kf7 {[%emt 0:06:02][%cal Bg8f7,Bf7f8,Bf8e7,Be7f6][%mdl 32]} 24. Nf3 {[%emt 0:02:31] Ng5+ is the strong threat.} Bxe7 {[%emt 0:01:59]} 25. dxe7 {[%emt 0:00:05]} Rxe7 {[%emt 0:00:20]} 26. Ng5+ {[%emt 0:00:31]} Kf8 {[%emt 0:00:38]} 27. Rxe7 {[%emt 0:02:40]} Kxe7 {[%emt 0:00:05]} 28. Nxh7 {[%emt 0:00:07][%mdl 4096] Endgame KRN-KRN} Rc8 {[%emt 0:02:44]} 29. Ng5 {[%emt 0:02:03]} c4 {[%emt 0:00:36]} 30. bxc4 {[%emt 0:02:00]} Rxc4+ {[%emt 0:00:24]} 31. Kb1 {[%emt 0:01:30]} Nc5 {[%emt 0:01:19]} 32. Re1+ {[%emt 0:01:53]} Kf6 {[%emt 0:00:53]} 33. Nh7+ {[%emt 0:00:23]} Kf7 {[%emt 0:00:40]} 34. Ng5+ {[%emt 0:00:30]} Kf6 {[%emt 0:00:38]} 35. Nh7+ {[%emt 0:03:36]} Kf7 {[%emt 0:00:17]} 36. Ng5+ {[%emt 0:00:23]} Kf6 {[%emt 0:00:28]} 37. Nh7+ {[%emt 0:00:28]} Kf7 38. Ng5+ Kg8 39. Re7 Nd3 40. Ne6 Re4 {And now ...Nc5 would win.} 41. Rg7+ Kh8 42. Rxg6 {Weighted Error Value: White=0.14 (very precise) /Black=0.19 (very precise)} 1/2-1/2

[Event "GER-ch Youth-U14 2022"]
[Site "Willingen"]
[Date "2022.06.09"]
[Round "7.6"]
[White "Hagner, Bennet"]
[Black "Krüger, Arthur"]
[Result "1/2-1/2"]
[ECO "C12"]
[WhiteElo "2186"]
[BlackElo "1988"]
[Annotator "TA"]
[PlyCount "60"]
[EventDate "2022.06.05"]
[EventType "swiss"]
[EventRounds "9"]
[EventCountry "GER"]
[SourceTitle "playchess.com"]
[Source "ChessBase"]
[SourceQuality "1"]
[TimeControl "40/4500+30:900+30"]

{[%evp 14,60,0,6,0,0,0,-43,-14,-22,0,0,54,31,39,38,114,108,122,130,128,158,140,72,90,52,72,81,82,53,90,86,146,0,0,0,0,0,0,0,0,0,0,-20,0,0,12,12,12]} 1. e4 {[%emt 0:00:00]} e6 {[%emt 0:00:00]} 2. d4 {[%emt 0:00:00]} d5 {[%emt 0:00:00]} 3. Nc3 {[%emt 0:00:00]} Nf6 {[%emt 0:00:00]} 4. Bg5 {[%emt 0:00:00]} Bb4 {[%emt 0:00:00]} 5. e5 {[%emt 0:00:00]} h6 {[%emt 0:00:00]} 6. Bd2 {[%emt 0:00:00]} Bxc3 {[%emt 0:00:00]} 7. bxc3 {[%emt 0:00:00]} Ne4 {[%emt 0:00:00]} 8. Bc1 {[%emt 0:00:00]} Nxc3 {[%emt 0:00:00] C12: French: Classical System: McCutcheon Variation.} 9. Qg4 {[%emt 0:00:00] [#] Threatens to win with Qg3.} g6 {[%emt 0:00:00][%cal Oc7c5]} 10. Ne2 {[%emt 0:00:00]} Nxe2 {[%emt 0:00:00] Black is slightly better.} 11. Bxe2 {[%emt 0:00:00]} c5 {[%emt 0:00:00]} (11... h5 $5 {[%cal Rh5g4]} 12. Qg3 c5 $11) 12. O-O {[%emt 0:00:00]} Qa5 {[%emt 0:02:58]} ({Black should try} 12... b6 $11) 13. dxc5 $14 {[%emt 0:15:06]} Nc6 {[%emt 0:17:39] [#]} 14. Qh3 $146 {[%emt 0:00:28]} ({Predecessor:} 14. Qh4 Qxc5 15. Qf6 Rh7 16. Bd3 Qe7 17. Qf4 Qg5 18. Qa4 Qxe5 19. Rb1 Qc7 20. Bf4 {½-½ (44) Huschenbeth,N (2608)-Leniart,A (2465) Legnica 2021}) 14... Qxc5 {[%emt 0:11:22]} (14... Qc7 $14 15. Bb2 (15. Bxh6 Ne7 $11) 15... Bd7) 15. Ba3 $16 {[%emt 0:00:12]} Qa5 {[%emt 0:03:13]} 16. Bd6 {[%emt 0:05:32][%mdl 1024] White has strong compensation.} Ne7 {[%emt 0:07:33]} 17. Rab1 {[%emt 0:08:12]} (17. Qh4 $6 Qd8 $14) 17... Qd8 {[%emt 0:03:44]} 18. Bd3 {[%emt 0:09:06] White is much more active. The black rooks are badly placed. This bishop pair is nice.} (18. c4 $142) 18... b6 {[%emt 0:07:40]} 19. Ba3 {[%emt 0:04:55]} (19. Bb5+ Bd7 $11) 19... Bd7 {[%emt 0:02:05]} 20. c4 {[%emt 0:10:47]} Rc8 {[%emt 0:04:20]} 21. Rbc1 {[%emt 0:02:56]} dxc4 {[%emt 0:03:25]} 22. Bxc4 {[%emt 0:00:30]} ({Don't play} 22. Rxc4 Rxc4 23. Bxc4 b5 $14) 22... Rxc4 {[%emt 0:02:19]} 23. Rxc4 {[%emt 0:00:13]} (23. Bxe7 $16 Kxe7 24. Qf3 (24. Rxc4 Bb5 $11) 24... Rxc1 25. Qf6+ Ke8 26. Qxh8+ Ke7 27. Qxd8+ Kxd8 28. Rxc1) 23... Bb5 $11 {[%emt 0:00:10] The position is equal.} 24. Bxe7 {[%emt 0:05:28]} Kxe7 {[%emt 0:00:16]} 25. Qa3+ {[%emt 0:04:33]} Ke8 {[%emt 0:00:20]} 26. Rcc1 {[%emt 0:00:43]} Bxf1 {[%emt 0:00:14]} 27. Kxf1 {[%emt 0:00:45] [#] aiming for Qa6.} Qd5 {[%emt 0:12:46]} 28. Re1 {[%emt 0:11:09]} Qb5+ {[%emt 0:02:24]} 29. Kg1 {[%emt 0:00:21]} Qa5 {[%emt 0:01:20]} 30. Qxa5 bxa5 {[%emt 0:00:24] Weighted Error Value: White=0.18 (very precise) /Black=0.18 (very precise)} 1/2-1/2

[Event "GER-ch Youth-U14 2022"]
[Site "Willingen"]
[Date "2022.06.09"]
[Round "7.7"]
[White "Kempe, Caius Emilian"]
[Black "Luebke, Florentin"]
[Result "1/2-1/2"]
[ECO "D20"]
[WhiteElo "1973"]
[BlackElo "1613"]
[Annotator "TA"]
[PlyCount "115"]
[EventDate "2022.06.05"]
[EventType "swiss"]
[EventRounds "9"]
[EventCountry "GER"]
[SourceTitle "playchess.com"]
[Source "ChessBase"]
[SourceQuality "1"]
[TimeControl "40/4500+30:900+30"]

{[%evp 9,115,-61,-44,-64,-25,-48,-39,-90,-8,0,12,8,0,-26,-18,-20,-22,-109,-55,-109,-37,-51,-41,-70,-53,-95,-96,-85,0,0,0,-5,-4,-6,-2,-8,5,4,12,16,12,0,36,13,16,0,0,0,0,0,5,0,0,0,0,0,0,0,0,0,26,29,27,27,26,26,37,30,39,0,0,0,0,0,0,0,0,0,0,0,0,0,0,0,0,0,0,0,0,0,0,0,0,0,0,0,0,0,0,0,0,0,0,0,0,0,0,0]} 1. d4 {[%emt 0:00:00]} d5 {[%emt 0:00:00]} 2. c4 {[%emt 0:00:00]} dxc4 {[%emt 0:00:00]} 3. Nc3 {[%emt 0:00:00]} e5 {[%emt 0:00:00]} 4. d5 {[%emt 0:00:00]} Nd7 {[%emt 0:00:00]} 5. Nf3 {[%emt 0:00:00]} Ngf6 {[%emt 0:00:00]} 6. e4 {[%emt 0:03:02] D20: Queen's Gambit Accepted: 3 e3 and 3 e4.} Bb4 {[%emt 0:00:49]} (6... b5 $5) 7. Qc2 {[%emt 0:02:41] [#]} Nc5 $146 {[%emt 0:07:39]} ({Predecessor:} 7... O-O 8. Bxc4 Re8 9. O-O a6 10. a3 Bd6 11. a4 Nf8 12. Qb3 Ng6 13. Re1 Nd7 {0-1 (57) Njardarson,A-Thorarensen,A (1726) Reykjavik 2012}) 8. Bg5 {[%emt 0:03:40] [#]} (8. Nd2 $15) 8... Bxc3+ {[%emt 0:02:55]} (8... b5 $1 $17 {...Ncxe4 is the strong threat.} 9. Nd2 a6) 9. Qxc3 $11 {[%emt 0:06:56]} O-O {[%emt 0:01:37]} 10. Bxf6 {[%emt 0:08:52]} Qxf6 {[%emt 0:01:13]} 11. Qxc4 {[%emt 0:00:07]} (11. Qe3 $5 {[%cal Re3c5]} Nd3+ 12. Bxd3 cxd3 13. O-O $11) 11... b6 {[%emt 0:12:12]} 12. Qc2 {[%emt 0:09:13]} a5 {[%emt 0:01:36]} 13. Nd2 {[%emt 0:00:42]} (13. Bc4 $11) 13... Rd8 {[%emt 0:02:57]} (13... c6 $17 14. Nb3 Nxb3 15. axb3 cxd5 16. exd5 Bf5) 14. Be2 {[%emt 0:01:34]} (14. Nb3 $15) 14... Bb7 {[%emt 0:03:08]} (14... Qg6 $17 15. O-O c6) 15. O-O $15 {[%emt 0:01:58]} c6 {[%emt 0:02:29]} 16. dxc6 {[%emt 0:06:04]} Qxc6 {[%emt 0:00:42]} 17. Rac1 {[%emt 0:11:27]} Rac8 {[%emt 0:09:24]} 18. Bg4 {[%emt 0:00:48]} Ne6 {[%emt 0:05:29]} ({Better is} 18... Rc7 $17 {aiming for ...h5.} 19. Rfd1 Qf6) 19. Qxc6 $11 {[%emt 0:00:44]} Rxc6 {[%emt 0:01:14]} 20. Nf3 {[%emt 0:01:12][%cal Bd2f3,Bf3e5,Be5c4,Bc4d6][%mdl 32]} Rxc1 {[%emt 0:03:08]} 21. Rxc1 {[%emt 0:00:09]} Bxe4 {[%emt 0:01:10] [#] And now ...f5 would win.} 22. Nxe5 {[%emt 0:00:17]} Nf4 {[%emt 0:02:10]} 23. g3 $1 {[%emt 0:02:04]} Ng6 {[%emt 0:05:32]} 24. Nc4 {[%emt 0:12:10]} f5 {[%emt 0:04:23]} 25. Be2 {[%emt 0:00:09]} Rc8 {[%emt 0:01:45] Strongly threatening ...b5.} (25... b5 $5 {[%cal Rb5c4]} 26. Nxa5 Rd2 27. Bxb5 Ne5 $11) 26. Rd1 {[%emt 0:00:23] White wants to play f3.} b5 $1 {[%emt 0:08:23]} 27. Nd6 {[%emt 0:04:57]} Rc2 {[%emt 0:00:28][%csl LRb2,LRe2]} 28. Bxb5 {[%emt 0:00:28]} Ne5 $1 {[%emt 0:01:40]} 29. Nxe4 {[%emt 0:00:59]} fxe4 {[%emt 0:00:13][%mdl 4096] Endgame KRB-KRN} 30. h3 {[%emt 0:05:17]} Rxb2 {[%emt 0:00:56]} 31. Rd5 {[%emt 0:01:28]} Nf3+ {[%emt 0:00:25]} 32. Kg2 {[%emt 0:00:03]} Ne1+ {[%emt 0:00:52]} 33. Kf1 {[%emt 0:00:09]} Nf3 {[%emt 0:01:21] ( -> ...Rb1+)} 34. Be2 {[%emt 0:02:54]} Nd2+ {[%emt 0:00:31]} (34... Rxa2 $2 35. Bc4 Ra1+ 36. Rd1+ Kf8 37. Rxa1 $18) 35. Ke1 {[%emt 0:00:32]} Nf3+ {[%emt 0:02:03]} 36. Bxf3 {[%emt 0:00:55]} exf3 {[%emt 0:00:05]} 37. Rxa5 {[%emt 0:00:07] KR-KR} Re2+ $1 {[%emt 0:00:05]} 38. Kf1 {[%emt 0:01:23]} Rb2 {[%emt 0:00:12][%cal Rb2b1]} 39. Ke1 {[%emt 0:00:47]} Re2+ $1 {[%emt 0:00:05] The position is equal.} 40. Kd1 {[%emt 0:00:43]} ({Much less strong is} 40. Kf1 Rd2 41. Kg1 Rd1+ 42. Kh2 Rd2 $14) 40... Rxf2 {[%emt 0:00:17]} 41. Ke1 {[%emt 0:00:00]} Rg2 {[%emt 0:00:00]} 42. g4 {[%emt 0:00:00]} Rh2 {[%emt 0:00:00]} 43. a3 {[%emt 0:00:00]} g6 {[%emt 0:00:00]} 44. Ra4 {[%emt 0:00:00]} Rxh3 {[%emt 0:00:00]} 45. Kf2 {[%emt 0:00:00]} Kg7 {[%emt 0:00:00]} 46. Rf4 {[%emt 0:00:00]} Rh2+ {[%emt 0:00:00]} 47. Kg3 {[%emt 0:00:00]} Ra2 {[%emt 0:00:00]} 48. Rxf3 {[%emt 0:00:00]} (48. a4 {feels hotter.} g5 49. Rf5 h6 50. Ra5) 48... g5 {[%emt 0:00:00]} 49. Rb3 {[%emt 0:00:00]} h5 {[%emt 0:00:00]} 50. gxh5 {[%emt 0:00:00]} Kh6 {[%emt 0:00:00]} 51. Kg4 {[%emt 0:00:00] Threatens to win with Rb6+.} Rg2+ {[%emt 0:00:00]} 52. Rg3 {[%emt 0:00:00]} Rc2 {[%emt 0:00:00]} 53. Rb3 {[%emt 0:04:06] Black must now prevent Rb6+.} Rc4+ {[%emt 0:00:00]} 54. Kh3 {[%emt 0:00:32]} Kxh5 {[%emt 0:00:00]} 55. Kh2 {[%emt 0:00:25]} Kg4 {[%emt 0:00:00]} 56. Rb4 {[%emt 0:00:51]} Rxb4 {[%emt 0:00:00]} 57. axb4 {[%emt 0:00:01] White threatens b5 and mate.} Kf5 {[%emt 0:00:00]} 58. b5 {Weighted Error Value: White=0.10 (very precise) /Black=0.11 (very precise)} 1/2-1/2